bitfinex/quotes_ETHUSD_20250801
["timestamp","ask_amount","ask_price","bid_price","bid_amount"]
[1754056154810,18.37404487,3597.9,3597.6,0.17733857]
[1754056155011,7.64627873,3597.8,3597.6,0.17733857]
[1754056155214,7.15952726,3597.8,3597.5,0.43406643]
[1754056155533,0.7678,3597.7,3594.5,2.78201707]
[1754056155708,0.03474538,3597.6,3594.9,1.34979211]
[1754056155912,5.65,3597.5,3594.9,1.34979211]
[1754056156099,0.03474731,3597.4,3596.0,2.78085707]
[1754056156304,0.03474731,3597.4,3595.2,2.78145498]
[1754056156305,0.03474731,3597.4,3595.9,2.78091273]
[1754056156504,0.1392,3596.6,3596.0,2.92006362]
[1754056156821,5.65,3597.5,3595.4,0.471]
[1754056157021,0.1392,3596.6,3595.4,0.471]
[1754056157225,0.1392,3596.6,3596.0,0.1392]
[1754056157600,0.03475601,3596.5,3596.0,0.1392]
[1754056157801,10.7678,3597.7,3595.0,0.471]
[1754056157802,6.0962,3597.1,3595.0,0.471]
[1754056158324,10.0,3596.0,3595.6,0.1392]
[1754056158543,10.0,3596.0,3595.7,3.0]
[1754056158744,10.0,3596.0,3595.9,0.1392]
[1754056159242,0.4592,3596.5,3594.5,0.471]
[1754056159400,10.7678,3596.9,3594.5,0.471]
[1754056159401,0.4592,3596.7,3594.5,0.471]
[1754056159600,0.1392,3596.4,3595.9,0.1392]
[1754056159800,0.1392,3596.3,3595.8,0.1392]
[1754056160038,0.03545045,3596.3,3594.7,2.78183402]
[1754056160240,0.03545045,3596.3,3594.6,0.6213]
[1754056160241,0.1392,3596.0,3595.5,0.1392]
[1754056160743,0.1392,3596.0,3594.6,0.6213]
[1754056160744,0.03476181,3595.9,3594.6,0.6213]
[1754056160938,9.20739651,3596.1,3593.8,0.471]
[1754056161099,0.1392,3595.6,3595.0,0.1392]
[1754056161304,0.03467219,3595.5,3595.3,0.1392]
[1754056161638,0.7678,3595.4,3595.1,0.1392]
[1754056161800,10.0,3596.0,3594.5,0.55]
[1754056162002,10.0,3596.0,3595.3,0.1392]
[1754056162238,10.0,3596.0,3593.8,3.11366953]
[1754056162239,10.0,3596.0,3595.9,0.1392]
[1754056162397,10.0,3596.0,3595.2,0.55]
[1754056162595,10.0,3596.0,3595.9,0.1392]
[1754056162837,9.36706242,3596.0,3595.9,5.92014496]
[1754056163051,9.36706242,3596.0,3595.9,0.471]
[1754056163336,0.471,3597.8,3595.9,0.471]
[1754056163337,0.471,3597.8,3597.7,2.7795536]
[1754056163541,0.471,3597.8,3597.7,3.64895536]
[1754056163914,0.471,3597.8,3597.7,0.27795536]
[1754056164115,0.471,3597.8,3597.7,2.7795536]
[1754056164332,0.4592,3600.3,3598.0,0.55]
[1754056164643,0.1,3602.5,3597.8,0.55]
[1754056164644,0.7678,3600.8,3598.4,0.55]
[1754056164815,4.87523553,3601.0,3599.5,0.55]
[1754056165010,4.87523553,3601.0,3599.8,2.7779321]
[1754056165206,4.87523553,3601.0,3600.0,0.55]
[1754056165513,4.87523553,3602.0,3600.7,2.7772078]
[1754056165740,4.87523553,3602.0,3600.0,0.55]
[1754056165741,4.87523553,3602.0,3600.8,0.471]
[1754056166115,4.87523553,3602.9,3601.8,2.77638899]
[1754056166316,0.03467219,3602.8,3601.8,0.2776389]
[1754056166518,0.03467219,3602.8,3601.3,0.471]
[1754056166519,4.87523553,3602.9,3601.3,0.471]
[1754056166847,14.18991721,3603.6,3601.3,0.471]
[1754056166848,0.03467219,3603.4,3601.3,0.471]
[1754056167061,5.724,3603.2,3601.5,0.55]
[1754056167223,5.724,3603.2,3601.7,0.55]
[1754056167420,5.724,3603.2,3601.9,2.77630872]
[1754056167620,5.724,3603.2,3601.7,0.55]
[1754056167621,5.724,3603.2,3602.1,2.7761502]
[1754056167847,0.7678,3603.5,3602.1,0.55]
[1754056168047,6.677,3603.9,3601.7,2.77646666]
[1754056168222,4.87523553,3604.0,3602.1,0.471]
[1754056168425,4.87523553,3604.0,3602.2,0.55]
[1754056168634,5.711,3604.3,3602.9,2.77547381]
[1754056168964,5.64303553,3604.5,3603.2,3.0]
[1754056169176,5.64303553,3604.5,3603.0,0.55511675]
[1754056169316,0.4592,3604.7,3603.2,3.0]
[1754056169514,0.4592,3604.7,3602.9,2.77553167]
[1754056169716,0.03467219,3604.6,3602.8,5.77561151]
[1754056169965,0.03467219,3604.6,3602.7,0.471]
[1754056169966,0.24454542,3604.6,3602.7,0.471]
[1754056170173,0.24455164,3604.5,3603.0,3.0]
[1754056170458,0.4592,3604.4,3602.6,2.77577305]
[1754056170613,4.87523553,3604.8,3602.8,0.55]
[1754056170813,4.87523553,3604.8,3603.8,3.0]
[1754056171032,0.4592,3605.1,3603.4,0.471]
[1754056171033,5.33443553,3605.1,3603.4,0.471]
[1754056171262,0.24460191,3605.0,3601.7,0.6925]
[1754056171555,0.24460191,3605.0,3601.8,0.471]
[1754056171556,0.03467219,3604.9,3601.8,0.471]
[1754056171844,0.4592,3604.8,3602.5,2.77577393]
[1754056172070,0.6777196,3604.7,3602.6,3.52434347]
[1754056172227,0.6777196,3604.7,3602.6,0.74857739]
[1754056172549,0.73862919,3604.6,3601.3,6.674]
[1754056172750,6.386957,3604.5,3601.9,0.471]
[1754056172955,6.386957,3604.4,3601.9,0.471]
[1754056173252,0.1384,3603.9,3603.3,0.1384]
[1754056173454,0.244757,3604.2,3602.7,0.471]
[1754056173655,0.383157,3604.1,3602.0,0.6157]
[1754056173820,0.73862919,3604.1,3602.3,3.0]
[1754056174166,0.244757,3604.0,3602.4,0.471]
[1754056174324,5.918757,3603.9,3603.4,0.1384]
[1754056174512,0.244757,3603.8,3603.4,0.1384]
[1754056174850,0.03467219,3603.7,3603.4,0.1384]
[1754056175049,0.27942919,3603.7,3603.3,0.1384]
[1754056175349,0.244757,3603.6,3603.2,0.1384]
[1754056175648,0.244757,3603.5,3602.4,0.471]
[1754056175850,0.24554909,3603.4,3602.4,0.471]
[1754056176151,0.24554909,3603.4,3601.2,2.77678611]
[1754056176152,6.37063658,3603.3,3600.9,2.77702728]
[1754056176310,18.92404487,3603.1,3600.5,0.4411]
[1754056176509,0.55,3602.9,3600.0,0.4411]
[1754056176723,18.37404487,3602.3,3599.1,6.673]
[1754056176924,18.37404487,3601.5,3598.8,0.4411]
[1754056177145,13.666,3601.4,3598.8,0.4411]
[1754056177452,2.72483276,3601.3,3597.6,2.77956367]
[1754056177610,2.7770924,3600.9,3598.5,2.77887731]
[1754056177816,30.0,3600.6,3597.8,0.4411]
[1754056178017,6.2541,3600.5,3597.8,0.4411]
[1754056178233,0.4691,3600.4,3597.8,0.4411]
[1754056178438,5.782,3600.3,3598.6,2.77881067]
[1754056178639,0.4691,3600.4,3598.9,2.77859986]
[1754056178933,5.78,3600.2,3597.0,0.834884]
[1754056179133,2.7784066,3599.2,3597.1,0.4411]
[1754056179386,7.11167219,3599.1,3596.5,0.4411]
[1754056179598,6.49216722,3599.0,3595.9,0.02780944]
[1754056179796,0.03467219,3598.9,3595.8,0.4411]
[1754056179967,0.4691,3598.8,3596.1,2.7807903]
[1754056180289,0.4691,3598.8,3594.7,0.96786673]
[1754056180290,0.4691,3598.7,3596.2,0.76328903]
[1754056180458,6.6069,3599.0,3597.3,2.77979073]
[1754056180664,6.6069,3599.0,3597.2,3.4411]
[1754056180844,0.8259,3599.0,3597.2,0.4411]
[1754056181044,5.783,3598.9,3597.3,2.77986267]
[1754056181389,4.87523553,3598.7,3597.4,0.62209627]
[1754056181688,4.87523553,3598.7,3597.1,2.77999096]
[1754056181689,0.03467219,3598.6,3597.1,2.77999096]
[1754056181895,0.50377219,3598.6,3596.8,0.4411]
[1754056182062,4.87523553,3598.5,3596.8,0.4411]
[1754056182252,4.87523553,3598.5,3597.2,2.77993143]
[1754056182563,4.87523553,3598.5,3596.8,0.4411]
[1754056182761,4.87523553,3598.5,3597.2,2.77993711]
[1754056182990,4.87523553,3597.3,3594.3,0.835464]
[1754056183287,0.55,3597.1,3595.0,0.4411]
[1754056183586,0.55,3596.9,3594.5,2.78196481]
[1754056183884,0.55,3596.9,3594.4,0.4411]
[1754056183885,0.55,3596.7,3594.7,2.78187331]
[1754056184087,2.46688171,3596.8,3594.8,0.02781795]
[1754056184284,0.4691,3596.8,3594.7,0.4411]
[1754056184487,0.4691,3596.8,3595.3,2.781361]
[1754056184488,4.87523553,3596.7,3595.3,2.781361]
[1754056184792,4.87523553,3596.7,3595.2,2.78147787]
[1754056185090,4.87523553,3596.7,3594.7,3.0]
[1754056185384,4.87523553,3596.7,3593.9,5.767]
[1754056185385,4.87523553,3596.5,3596.4,2.78055833]
[1754056185588,6.33780619,3597.0,3596.9,5.78017181]
[1754056185751,7.85211102,3597.8,3596.9,0.4411]
[1754056185951,6.33780619,3598.4,3597.1,3.0]
[1754056186151,6.33780619,3598.4,3598.2,0.1392]
[1754056186453,6.33780619,3598.4,3597.0,3.0]
[1754056186667,6.33780619,3598.4,3598.3,0.1392]
[1754056186866,0.4691,3598.4,3598.0,0.1392]
[1754056187164,0.8259,3598.3,3598.0,0.1392]
[1754056187363,0.03467219,3598.5,3596.5,0.4411]
[1754056187578,0.03467219,3598.5,3596.2,2.78069763]
[1754056187579,1.295,3598.2,3596.2,2.78069763]
[1754056187755,0.1392,3597.6,3596.9,0.1392]
[1754056187953,1.295,3598.2,3597.0,0.1392]
[1754056188152,1.295,3598.2,3597.5,0.1392]
[1754056188388,1.295,3598.2,3597.8,0.1392]
[1754056188786,0.1392,3598.3,3597.8,0.1392]
[1754056188993,1.4342,3598.3,3597.8,0.1392]
[1754056189296,0.6083,3598.2,3596.7,5.78029548]
[1754056189490,0.6083,3598.2,3597.6,0.1392]
[1754056189857,0.4691,3598.2,3596.9,2.78016456]
[1754056190050,0.4691,3598.2,3596.8,0.57802955]
[1754056190396,0.4691,3598.2,3596.3,3.0]
[1754056190397,0.4691,3598.2,3596.4,0.02780558]
[1754056190557,0.1392,3598.0,3597.5,0.1392]
[1754056190754,0.1392,3598.6,3598.1,0.1392]
[1754056190958,5.75967219,3598.7,3597.0,0.4411]
[1754056190959,0.1392,3598.3,3597.8,0.1392]
[1754056191267,0.6083,3598.3,3597.8,0.1392]
[1754056191591,1.4342,3598.3,3597.8,0.1392]
[1754056191800,0.1352,3598.3,3597.8,0.1392]
[1754056191984,0.8259,3598.2,3597.7,0.1392]
[1754056192212,0.4691,3598.1,3596.4,0.4411]
[1754056192486,5.712,3598.5,3598.1,0.1392]
[1754056192687,5.712,3598.5,3598.4,0.1392]
[1754056192873,0.1392,3599.0,3598.4,0.1392]
[1754056193082,5.8522,3599.2,3598.4,0.1392]
[1754056193395,5.8522,3599.2,3598.7,0.1392]
[1754056193600,5.8522,3599.2,3598.0,2.77929775]
[1754056193601,1.295,3599.1,3596.5,3.0]
[1754056193801,1.295,3599.1,3597.5,0.4411]
[1754056194006,1.295,3599.1,3597.5,3.4411]
[1754056194163,0.03467219,3599.0,3598.0,2.77926548]
[1754056194358,1.295,3599.1,3597.6,2.77963086]
[1754056194565,1.295,3599.1,3597.7,0.32207309]
[1754056195112,0.8259,3599.1,3598.3,2.77906984]
[1754056195259,5.713,3599.2,3598.3,2.77906984]
[1754056195461,5.713,3599.2,3598.0,2.77926677]
[1754056195700,0.4691,3599.6,3598.2,2.77916172]
[1754056196017,5.94654119,3599.5,3598.5,2.77891312]
[1754056196163,5.688,3599.5,3598.7,2.77872341]
[1754056196362,0.25863139,3599.4,3598.5,2.77893486]
[1754056196668,5.681,3599.7,3598.5,0.55580295]
[1754056196868,0.25860921,3599.6,3597.7,0.32207309]
[1754056197083,5.681,3599.7,3598.0,2.77924701]
[1754056197084,1.55363711,3599.5,3598.0,2.77924701]
[1754056197274,0.25862202,3599.4,3598.1,2.77924415]
[1754056197476,0.25862202,3599.3,3598.1,2.77918962]
[1754056197676,1.295,3599.5,3597.7,0.4411]
[1754056197677,0.29329421,3599.2,3597.7,0.4411]
[1754056197908,5.679,3599.1,3598.1,2.77917363]
[1754056198078,0.25880871,3599.0,3598.0,2.77926647]
[1754056198272,0.25880871,3598.9,3597.8,0.34411]
[1754056198522,1.295,3599.5,3597.8,0.34411]
[1754056198523,0.2934809,3598.8,3597.8,0.34411]
[1754056198712,0.4691,3599.0,3597.5,2.77970255]
[1754056199012,0.29345722,3598.9,3597.2,0.4411]
[1754056199214,0.25879838,3598.8,3597.2,0.4411]
[1754056199411,0.25879838,3598.7,3597.2,0.4411]
[1754056199612,0.4691,3599.0,3597.2,0.4411]
[1754056199816,0.25858373,3598.9,3597.2,0.4411]
[1754056200001,0.03467219,3598.8,3597.2,0.4411]
[1754056200203,1.295,3599.5,3597.4,2.7797854]
[1754056200530,1.295,3599.5,3597.0,3.0]
[1754056200531,5.662,3599.7,3597.5,0.4411]
[1754056200694,0.835248,3599.9,3597.9,0.55]
[1754056200881,0.835248,3599.9,3598.1,0.55]
[1754056201085,4.66343109,3600.7,3598.3,0.55]
[1754056201308,4.66343109,3601.5,3599.0,2.77853982]
[1754056201534,0.03467219,3601.4,3599.3,3.0]
[1754056201739,1.90862033,3601.4,3599.4,0.34411]
[1754056201881,4.66343109,3601.5,3599.4,0.8129924]
[1754056202082,5.658,3601.6,3600.3,2.77749866]
[1754056202381,1.32967219,3601.5,3599.3,0.4411]
[1754056202590,6.1381,3601.4,3598.6,0.4411]
[1754056202780,18.37404487,3600.9,3598.0,1.244705]
[1754056202989,26.38271706,3600.8,3598.0,2.77926738]
[1754056203225,0.4691,3600.7,3598.1,0.46889244]
[1754056203419,7.5049,3600.8,3598.8,3.0]
[1754056203619,7.5049,3600.8,3598.1,0.4411]
[1754056203620,4.66343109,3600.7,3599.0,2.77854959]
[1754056203781,1.2984153,3600.6,3598.9,0.4411]
[1754056203987,1.2984153,3600.6,3598.9,3.21971029]
[1754056204186,1.26374311,3600.6,3599.4,2.77823178]
[1754056204504,5.9271742,3600.6,3598.9,0.4411]
[1754056205069,1.295,3600.5,3598.1,0.4411]
[1754056205349,7.3363107,3600.5,3598.2,0.34411]
[1754056205567,0.55,3600.3,3598.0,0.4591]
[1754056205698,1.2994,3600.4,3598.3,0.0277909]
[1754056205906,4.66343109,3600.5,3598.4,0.4591]
[1754056206098,4.66343109,3600.2,3599.7,2.77796283]
[1754056206401,4.66343109,3600.2,3599.8,0.4591]
[1754056206602,4.66343109,3600.2,3599.9,0.00699311]
[1754056206805,4.66343109,3600.7,3600.6,2.77731489]
[1754056207126,4.66343109,3600.7,3599.1,2.77844302]
[1754056207328,4.66343109,3600.7,3600.6,2.77731489]
[1754056207528,4.66343109,3600.9,3600.8,2.77716063]
[1754056208214,4.66343109,3602.0,3600.7,3.0]
[1754056208423,0.24793798,3601.9,3601.7,2.77644469]
[1754056208662,0.24793798,3601.8,3601.7,2.77646666]
[1754056208810,4.66343109,3602.0,3601.9,2.7763125]
[1754056209002,5.645,3603.2,3601.7,2.77646666]
[1754056209003,4.66343109,3602.7,3601.8,3.4591]
[1754056209205,0.24794424,3602.6,3601.8,0.62355667]
[1754056209515,0.24794424,3602.6,3601.9,0.00695109]
[1754056209715,0.24794424,3602.6,3602.5,2.7758501]
[1754056209918,4.66343109,3603.0,3601.6,0.4591]
[1754056210139,4.66343109,3603.0,3602.1,2.7761531]
[1754056210346,0.03469427,3602.9,3601.0,0.4591]
[1754056210566,1.2994,3602.9,3600.8,3.0]
[1754056210854,1.2994,3602.9,3599.6,2.7780645]
[1754056210855,0.55,3602.7,3599.6,2.7780645]
[1754056211167,0.55,3602.5,3599.6,2.77803925]
[1754056211305,0.55,3601.5,3598.3,2.77909012]
[1754056211510,0.55,3601.3,3598.1,0.4591]
[1754056211749,13.65310872,3601.4,3597.6,0.834798]
[1754056211750,18.37404487,3600.8,3597.6,0.834798]
[1754056212045,4.88411547,3600.7,3598.0,5.77930344]
[1754056212205,4.88411547,3600.7,3596.7,6.675]
[1754056212206,0.55,3600.5,3597.1,2.78001723]
[1754056212408,3.32771487,3600.1,3597.7,2.77954334]
[1754056212607,2.45992643,3600.0,3597.7,0.27795433]
[1754056212845,5.65,3599.9,3597.6,0.4591]
[1754056213051,5.65,3599.9,3598.3,2.77907652]
[1754056213272,5.65,3599.9,3597.6,3.23867741]
[1754056213413,5.65,3599.9,3597.6,0.4591]
[1754056213613,1.2994,3600.0,3597.7,0.00701909]
[1754056213809,6.9404,3600.0,3597.8,0.62458145]
[1754056214146,18.92404487,3600.8,3599.0,2.77848241]
[1754056214147,5.641,3600.6,3599.0,2.77848241]
[1754056214304,5.641,3600.6,3599.4,2.77822748]
[1754056214508,5.639,3600.6,3599.9,0.1392]
[1754056214709,5.639,3600.6,3600.3,0.1392]
[1754056214905,5.645,3601.1,3598.9,0.4591]
[1754056215165,5.645,3601.1,3600.5,0.1392]
[1754056215460,5.645,3601.1,3599.1,3.0]
[1754056215461,5.645,3601.1,3600.7,0.1392]
[1754056215608,5.645,3601.1,3599.0,0.62448413]
[1754056215609,1.2994,3601.0,3599.0,0.62448413]
[1754056215808,1.2994,3601.0,3598.9,0.4591]
[1754056215809,1.4386,3601.0,3600.5,0.1392]
[1754056216009,6.675,3601.4,3600.9,0.1392]
[1754056216010,7.1391,3601.4,3600.9,0.1392]
[1754056216242,0.8353,3601.9,3600.8,2.77709968]
[1754056216443,6.4793,3601.9,3599.9,0.4591]
[1754056216642,0.03470486,3601.8,3599.9,0.4591]
[1754056216857,0.4641,3601.7,3600.4,2.77742672]
[1754056217039,0.4641,3601.7,3599.9,0.4591]
[1754056217364,6.676,3602.8,3599.9,0.4591]
[1754056217365,0.4641,3602.4,3600.1,3.0]
[1754056217524,0.50591135,3602.3,3601.2,2.77682787]
[1754056217715,0.50591135,3602.2,3601.1,2.77686849]
[1754056217915,0.50591135,3602.1,3601.1,2.77686849]
[1754056218123,0.50591135,3602.1,3600.1,3.0]
[1754056218124,1.84001429,3602.0,3600.1,2.77765046]
[1754056218352,1.84001429,3602.0,3599.2,0.7555]
[1754056218353,1.15401278,3601.9,3599.4,0.4591]
[1754056218667,6.13591135,3601.8,3600.2,2.77762004]
[1754056218953,6.13591135,3601.8,3600.5,2.77738468]
[1754056218954,0.50591135,3601.7,3600.5,2.77738468]
[1754056219124,0.50591135,3601.7,3599.4,0.4591]
[1754056219125,1.84001814,3601.6,3600.3,2.7774851]
[1754056219313,0.50591135,3601.5,3600.4,2.77742242]
[1754056219655,0.50591135,3601.5,3599.7,2.77794965]
[1754056219656,1.00472007,3601.4,3599.7,2.77794965]
[1754056219824,0.50578202,3601.3,3599.0,2.77853459]
[1754056220030,0.29321032,3601.2,3598.9,2.7786268]
[1754056220225,1.8494,3601.1,3598.4,6.676]
[1754056220441,0.55,3600.9,3598.6,2.77885844]
[1754056220616,0.55,3600.7,3598.7,0.94548584]
[1754056220812,0.55,3600.5,3598.7,2.7787738]
[1754056221039,1.33411836,3600.4,3597.9,2.77938308]
[1754056221241,1.8494,3600.3,3597.7,0.4591]
[1754056221443,0.55,3600.1,3597.2,0.834937]
[1754056221645,0.55,3599.9,3597.3,0.7969037]
[1754056221956,0.55,3599.7,3598.1,2.7791898]
[1754056222308,0.4641,3599.6,3597.7,3.23862235]
[1754056222516,0.4641,3599.6,3598.8,2.77863849]
[1754056222741,0.8353,3599.8,3597.5,0.7555]
[1754056222924,0.8353,3599.8,3597.9,2.77939909]
[1754056223125,0.4641,3600.2,3599.6,2.77801306]
[1754056223355,0.8353,3600.6,3598.7,0.4591]
[1754056223563,4.66343109,3603.3,3598.7,0.4591]
[1754056223564,1.2994,3601.4,3599.0,3.0]
[1754056223764,5.593,3601.7,3599.5,2.77816363]
[1754056223938,5.593,3601.7,3598.6,0.55]
[1754056223939,0.50527662,3601.6,3599.6,1.22158329]
[1754056224152,6.0591,3602.0,3599.9,3.0]
[1754056224473,0.96942683,3601.9,3600.0,3.0]
[1754056224684,1.83943169,3601.8,3599.0,2.77854959]
[1754056224985,0.55,3601.6,3598.5,2.77893566]
[1754056225149,0.55,3601.4,3599.4,2.77821093]
[1754056225484,0.55,3601.2,3598.4,0.4591]
[1754056225789,0.55,3601.0,3598.5,2.77893566]
[1754056225950,0.55,3600.8,3598.7,2.77872866]
[1754056226139,0.55,3600.6,3598.4,0.4591]
[1754056226485,0.55,3600.4,3598.3,2.77901434]
[1754056226650,0.72233762,3600.3,3599.1,0.1392]
[1754056226864,0.50490429,3600.2,3599.2,0.00699968]
[1754056227162,0.4641,3600.4,3598.2,0.7555]
[1754056227480,0.24659908,3600.3,3599.2,2.77832962]
[1754056227682,0.4641,3600.4,3598.4,3.0]
[1754056227891,1.42001932,3600.3,3598.1,0.4591]
[1754056228088,1.42001932,3600.3,3597.6,2.77963086]
[1754056228089,0.4641,3600.2,3597.6,2.77963086]
[1754056228386,0.4641,3600.2,3598.5,2.77892976]
[1754056228590,0.4641,3600.2,3598.1,0.4591]
[1754056228740,5.573,3600.2,3598.2,0.00701117]
[1754056229076,5.572,3600.7,3598.3,3.23819012]
[1754056229287,0.8353,3601.0,3598.6,2.77885844]
[1754056229606,6.675,3601.1,3598.7,3.46609892]
[1754056229790,6.675,3601.1,3598.8,1.2146]
[1754056229955,6.675,3601.1,3598.9,0.4591]
[1754056230284,6.675,3601.1,3599.6,3.0]
[1754056230465,6.675,3601.1,3599.8,2.77788649]
[1754056230671,0.49881257,3601.0,3598.9,0.4591]
[1754056230880,0.4641,3601.0,3599.6,2.77803193]
[1754056231176,0.55,3600.8,3598.3,1.2938]
[1754056231477,0.55,3600.4,3598.3,2.7790897]
[1754056231680,0.55,3600.4,3598.2,2.77911241]
[1754056231681,0.55,3600.2,3598.2,2.77911241]
[1754056231981,5.565,3600.1,3598.3,0.28492135]
[1754056232182,5.565,3600.1,3599.3,2.77825506]
[1754056232391,5.565,3600.1,3598.3,3.73701124]
[1754056232672,5.565,3600.1,3599.1,2.77845787]
[1754056232877,1.33412222,3600.0,3597.6,0.7555]
[1754056233061,1.8494,3599.9,3597.5,0.4591]
[1754056233385,1.33412415,3599.8,3597.3,0.7969037]
[1754056233561,1.33412415,3599.8,3597.0,2.78007784]
[1754056233562,5.557,3599.7,3598.0,2.77932184]
[1754056233761,5.557,3599.7,3597.4,0.4591]
[1754056233962,1.2994,3599.8,3597.5,0.00702295]
[1754056234277,5.554,3599.6,3598.4,2.77896169]
[1754056234475,3.55,3600.6,3598.4,2.77896169]
[1754056234476,5.553,3600.1,3598.4,0.27789617]
[1754056234691,1.2994,3600.4,3598.5,0.00700885]
[1754056234876,5.55,3600.1,3599.1,2.77845216]
[1754056235186,5.55,3600.1,3598.5,0.4591]
[1754056235348,3.0,3601.0,3598.5,0.4591]
[1754056235349,5.542,3600.2,3598.6,0.00700779]
[1754056235549,5.542,3600.2,3598.7,2.77878122]
[1754056235767,0.03472125,3600.1,3598.8,0.3244889]
[1754056235986,0.03472125,3600.1,3598.6,2.77885844]
[1754056236188,0.03472125,3600.1,3598.5,0.4591]
[1754056236189,5.542,3600.2,3598.5,0.4591]
[1754056236493,5.542,3600.2,3598.0,3.7555]
[1754056236648,5.542,3600.2,3599.3,0.1392]
[1754056236649,0.1392,3599.9,3599.3,0.1392]
[1754056236849,0.55,3599.7,3597.2,0.4557]
[1754056237085,0.1392,3599.1,3598.6,0.1392]
[1754056237291,0.03473186,3599.0,3598.6,0.1392]
[1754056237596,1.3989,3598.9,3598.6,0.1392]
[1754056237812,6.9259,3598.9,3598.6,0.1392]
[1754056238086,1.3989,3598.8,3598.5,0.1392]
[1754056238489,0.19836242,3599.6,3598.5,0.1392]
[1754056238652,5.523,3599.0,3598.7,0.1392]
[1754056238854,0.472,3598.9,3597.8,2.77941874]
[1754056239103,0.472,3598.9,3598.5,0.1392]
[1754056239265,1.3989,3598.9,3598.5,0.1392]
[1754056239596,0.1392,3599.0,3598.5,0.1392]
[1754056239811,0.472,3599.5,3598.8,0.1392]
[1754056239969,5.982,3599.5,3598.8,0.1392]
[1754056240154,0.1392,3599.4,3598.8,0.1392]
[1754056240354,0.1392,3599.4,3597.8,2.77943464]
[1754056240355,5.6452,3600.0,3599.4,0.1392]
[1754056240551,5.506,3600.0,3598.1,0.4557]
[1754056240809,5.505,3600.5,3599.9,0.1392]
[1754056241017,0.472,3600.8,3600.4,0.1392]
[1754056241154,0.472,3601.4,3600.4,0.1392]
[1754056241355,0.472,3601.4,3599.5,3.4557]
[1754056241599,0.50670872,3601.4,3600.9,0.1392]
[1754056241755,0.50670872,3601.4,3598.7,8.28270445]
[1754056241756,1.3989,3601.3,3599.1,3.0]
[1754056241956,1.3989,3601.3,3600.6,0.1392]
[1754056241957,0.1392,3601.1,3600.6,0.1392]
[1754056242208,0.55,3600.9,3599.0,3.0]
[1754056242366,0.55,3600.7,3597.6,0.7555]
[1754056242719,0.1392,3599.0,3598.4,0.1392]
[1754056242865,6.93763283,3598.9,3596.8,0.4557]
[1754056243063,0.1392,3598.5,3598.0,0.1392]
[1754056243321,1.3989,3598.4,3598.0,0.1392]
[1754056243526,0.1392,3598.5,3598.0,0.1392]
[1754056244018,0.9269,3600.2,3598.4,2.91820612]
[1754056244168,0.9269,3600.2,3598.5,3.46270798]
[1754056244367,0.9269,3600.2,3599.0,2.77850601]
[1754056244622,0.9269,3600.2,3599.9,0.1392]
[1754056244926,1.3989,3600.1,3599.7,0.1392]
[1754056245067,6.9009,3600.1,3599.9,0.1392]
[1754056245269,1.3989,3600.0,3598.7,2.77873413]
[1754056245468,1.3989,3600.0,3599.5,0.1392]
[1754056245827,0.1392,3599.3,3598.7,0.1392]
[1754056245972,5.496,3599.7,3599.3,0.1392]
[1754056246318,5.496,3599.7,3599.2,0.1392]
[1754056246522,5.496,3599.7,3599.4,0.1392]
[1754056246684,1.3989,3599.7,3599.4,0.1392]
[1754056247709,0.1392,3600.2,3599.6,0.1392]
[1754056247872,5.482,3600.1,3599.6,0.1392]
[1754056248187,1.3989,3600.0,3599.6,0.1392]
[1754056248599,0.1392,3599.7,3598.8,0.1392]
[1754056248781,0.55,3599.2,3598.8,0.1392]
[1754056248980,0.1392,3598.9,3598.3,0.1392]
[1754056249612,0.1392,3598.9,3598.4,2.78603322]
[1754056249823,6.9046338,3598.8,3596.3,0.004]
[1754056249975,6.16146338,3598.7,3596.3,0.4597]
[1754056250327,0.1392,3598.3,3597.8,0.1392]
[1754056250476,0.9269,3598.2,3597.8,0.1392]
[1754056250675,0.9269,3598.2,3596.3,0.004]
[1754056250676,7.7431,3599.1,3598.2,0.1392]
[1754056250874,0.6112,3599.5,3598.9,0.1392]
[1754056251105,0.472,3600.2,3598.1,0.0070105]
[1754056251319,0.472,3600.2,3597.9,0.4557]
[1754056251320,5.50972125,3600.1,3599.9,0.1392]
[1754056251516,1.3989,3600.0,3599.5,0.1392]
[1754056251692,1.3989,3600.0,3597.9,0.4557]
[1754056251693,0.1392,3599.7,3599.2,0.1392]
[1754056252081,1.43362608,3599.6,3599.2,0.1392]
[1754056252314,0.55,3599.2,3597.0,0.4557]
[1754056252477,0.1392,3598.7,3596.6,0.4557]
[1754056252676,0.472,3599.7,3597.3,0.004]
[1754056252875,0.61189,3599.7,3599.2,0.1392]
[1754056253110,0.61189,3599.7,3597.4,1.18372401]
[1754056253111,6.8719,3599.6,3598.0,0.4557]
[1754056253293,1.3989,3600.2,3598.3,2.77909012]
[1754056253502,1.3989,3600.2,3599.5,0.1392]
[1754056253677,0.28159369,3602.4,3598.4,3.0]
[1754056253678,5.47,3600.5,3600.1,0.1392]
[1754056253877,0.1392,3600.8,3600.1,0.1392]
[1754056254105,0.50855034,3600.7,3600.3,0.1392]
[1754056254310,1.90745034,3600.6,3598.9,0.4557]
[1754056254508,0.50855034,3600.5,3600.0,0.1392]
[1754056254828,7.4071687,3600.4,3600.0,0.1392]
[1754056255124,2.04665034,3600.3,3597.7,0.4557]
[1754056255275,0.54327063,3600.2,3598.5,2.77886211]
[1754056255618,1.9489,3600.1,3597.7,1.1767]
[1754056255789,0.1392,3599.7,3599.2,0.1392]
[1754056256110,6.8539,3599.6,3599.1,0.1392]
[1754056256513,5.455,3599.6,3597.9,0.78537]
[1754056256723,0.1392,3600.0,3599.4,0.1392]
[1754056256877,5.48172318,3599.9,3599.4,0.1392]